Cogmind - Beta 11.1 @@@ ROGUE MODE // 2022.09.11 @ 11:13:54 // AFD2020/Player2 Player: Benkyo Result: Core destroyed Performance ------------- Evolutions (0) 0 Regions Visited (2) 400 Robots Destroyed (15) 75 Value Destroyed (289) 289 Prototype IDs (5) 100 Alien Tech Used (0) 0 Bonus (84) 84 TOTAL SCORE: 948 Bonus ------- High Alert Combat Kills 18 Follower Combat Kills 234 Friendly Fire -168 Cogmind --------- Core Integrity 0/250 Matter 262/300 Energy 85/100 System Corruption 0% Temperature Cool (0) Movement Treading (160) Location -10/Mines Parts ------- > --- POWER (1) -------- (None) > --- PROPULSION (2) --- Light Treads Light Treads > --- UTILITY (2) ------ Large Storage Unit Light Armor Plating > --- WEAPON (2) ------- Light Assault Rifle Grenade Launcher > --- INVENTORY (15) --- Light Treads Light Treads Compact Wheel Compact Wheel Compact Wheel Improved Heat Sink Huge Storage Unit Structural Scanner Improved Terrain Scanner Hacking Suite Tractor Beam Light Assault Rifle Light Assault Rifle Light Cannon Peak State ------------ > --- POWER ------------ Light Nuclear Core > --- PROPULSION ------- Light Treads Light Treads > --- UTILITY ---------- Large Storage Unit Improved Terrain Scanner > --- WEAPON ----------- Assault Rifle Light Assault Rifle > --- INVENTORY -------- Light Treads Wheel Compact Wheel Compact Wheel Improved Heat Sink Small Storage Unit Huge Storage Unit Tractor Beam [Rating: 12] Favorites ----------- Power Light Nuclear Core Engine Ion Engine Power Core Light Nuclear Core Propulsion Light Treads Treads Light Treads Utility Large Storage Unit Device Improved Terrain Scanner Storage Large Storage Unit Protection Light Armor Plating Weapon Light Assault Rifle Ballistic Gun Light Assault Rifle Launcher Grenade Launcher Build | -11 -10 -10 ------- Run | Scr Mat Min Slots Evolved . | . . . Power . | . . . Propulsion . | . . . Utility . | . . . Weapon . | . . . Parts Attached 11 | 7 3 1 Power 2 | 1 1 . Engine 1 | 1 . . Core 1 | . 1 . Reactor . | . . . Propulsion 2 | 2 . . Treads 2 | 2 . . Leg . | . . . Wheel . | . . . Hover . | . . . Flight . | . . . Utility 4 | 2 2 . Device 1 | 1 . . Storage 2 | 1 1 . Processor . | . . . Hackware . | . . . Protection 1 | . 1 . Artifact . | . . . Weapon 3 | 2 . 1 Energy Gun . | . . . Energy Cannon . | . . . Ballistic Gun 2 | 2 . . Ballistic Cannon . | . . . Launcher 1 | . . 1 Special Weapon . | . . . Impact Weapon . | . . . Slashing Weapon . | . . . Piercing Weapon . | . . . Special Melee Weapon . | . . . Unidentified Prototypes . | . . . Parts Lost 2 | . . 2 Power 1 | . . 1 Propulsion . | . . . Utility . | . . . Weapon 1 | . . 1 Highest Loss Streak 2 | . . 2 To Critical Strikes . | . . . Average Slot Usage (%) 99 | . 100 98 Engine 2 | . 2 . Core 11 | . 11 13 Treads 28 | . 28 28 Device 3 | . 4 . Storage 14 | . 14 14 Protection 10 | . 9 14 Ballistic Gun 27 | . 28 27 Naked Turns . | . . . Heaviest Build 31 | 14 31 31 Greatest Support 40 | 40 40 40 Greatest Overweight (x) 2 | 2 . . Average Overweight (x) . | . . . Largest Inventory Capacity 15 | 8 15 15 Average Capacity 13 | 7 13 15 Most Carried 15 | 8 15 15 Average Carried 11 | 6 11 14 Final Capacity 15 | 8 15 15 Final Carried 15 | 8 15 14 Class Distribution -------------------- 100% | Mutant Dominant Class ---------------- Mutant | -10/Materials Mutant | -10/Mines Resources | -11 -10 -10 ----------- Run | Scr Mat Min Matter Collected 496 | 302 194 . Remotely . | . . . Salvage Created 565 | 119 391 55 Parts 31 | 8 21 2 Haulers Intercepted 1 | . 1 . Recyclers Shooed . | . . . Parts Field Recycled . | . . . Retrieved Matter . | . . . Parts Self-Destructed . | . . . Prevented . | . . . Kills | -11 -10 -10 ------- Run | Scr Mat Min Combat Hostiles Destroyed 9 | . 6 3 Guns 7 | . 6 1 AOE 2 | . . 2 Classes Destroyed 9 | 2 6 1 Builder 1 | . 1 . Tunneler 2 | 2 . . Hauler 1 | . 1 . Recycler 2 | 1 1 . Operator 1 | . 1 . Watcher 1 | . 1 . Swarmer 1 | . 1 . Grunt 6 | . 5 1 Assembled 2 | . . 2 Best Kill Streak 3 | 3 2 2 Combat Bots Only 2 | . 2 2 Max Kills in Single Turn 2 | 1 2 2 Gunslinging . | . . . Exploded 2 | . . 2 Melee . | . . . Uniques/NPCs Destroyed . | . . . Combat | -11 -10 -10 -------- Run | Scr Mat Min Damage Taken 660 | . 292 368 Core 124 | . 57 67 Absorbed by Shields . | . . . Core Remaining (%) 100 | 100 . . Volleys Fired 57 | 8 43 6 Largest 2 | 2 2 2 Hottest 40 | 40 40 40 Shots Fired 113 | 16 86 11 Gun 112 | 16 86 10 Cannon . | . . . Launcher 1 | . . 1 Special . | . . . Kinetic 112 | 16 86 10 Thermal . | . . . Explosive 1 | . . 1 Electromagnetic . | . . . Robot Hit Streak 11 | 8 11 6 Robot Miss Streak 5 | 2 5 5 Penetration Max . | . . . Secondary Targets 2 | . 2 . Max Gunslinging Chain 1 | . 1 . Shots Hit Robots 69 | 10 50 9 Core Hits 35 | 5 23 7 Critical Kills . | . . . Critical Parts Destroyed 1 | . 1 . Critical Strikes 1 | . 1 . Destroy 1 | . 1 . Melee Attacks . | . . . Impact . | . . . Slashing . | . . . Piercing . | . . . Sneak Attacks . | . . . Combat Hostiles . | . . . Follow-up Attacks . | . . . Damage Inflicted 883 | 127 557 199 Guns 753 | 127 557 69 Cannons . | . . . Explosions 130 | . . 130 Melee . | . . . Ramming . | . . . Kinetic 753 | 127 557 69 Thermal . | . . . Explosive 130 | . . 130 Electromagnetic . | . . . Impact . | . . . Slashing . | . . . Piercing . | . . . Highest Corruption . | . . . Average Corruption . | . . . Corruption Purged . | . . . Corruption Blocked . | . . . Overload Shots . | . . . Overflow Damage . | . . . Projectiles . | . . . Explosions . | . . . Melee . | . . . Knockbacks . | . . . Impact . | . . . Kinetic . | . . . Secondary . | . . . Self-Inflicted Damage . | . . . Shots . | . . . Rammed . | . . . Targets Rammed . | . . . Kicked . | . . . Crushed . | . . . Highest Temperature 27 | . 25 27 Average Temperature 7 | . 6 10 Received Heat Transfer 120 | . 102 18 Siege Activations . | . . . Robots Corrupted . | . . . Combat Hostiles . | . . . Parts Fried . | . . . Impact Corruptions . | . . . Robots Melted . | . . . Combat Hostiles . | . . . Parts Melted . | . . . Heat Transferred . | . . . Parts Sabotaged . | . . . Parts Stolen . | . . . Parts Stripped . | . . . Power Chain Reactions . | . . . Missiles Intercepted . | . . . Alert | -11 -10 -10 ------- Run | Scr Mat Min Peak Influence 521 | 15 521 133 Initial 108 | . 9 108 Average 279 | 6 320 111 Maximum Alert Level 2 | . 2 . Low Security (%) 29 | 100 15 100 Level 1 45 | . 54 . Level 2 24 | . 29 . Level 3 . | . . . Level 4 . | . . . Level 5 . | . . . High Security . | . . . Max Security . | . . . Squads Dispatched 4 | . 4 . Investigation 3 | . 3 . Extermination . | . . . Reinforcement 1 | . 1 . Assault . | . . . Garrison . | . . . Intercept . | . . . Searches Triggered . | . . . Construction Impeded . | . . . Haulers Reinforced . | . . . Active Scanning Responses . | . . . Cargo Convoy Interrupts . | . . . Stealth | -11 -10 -10 --------- Run | Scr Mat Min Distress Signals . | . . . Communications Jammed . | . . . Distress Signals . | . . . Times Spotted 43 | . 26 17 Peak Tracking Total 17 | . 5 17 Tactical Retreats 1 | . 1 . Traps | -11 -10 -10 ------- Run | Scr Mat Min Traps Triggered . | . . . Indirectly . | . . . Trap Hack Attempts . | . . . Triggered . | . . . Disarmed . | . . . Reprogrammed . | . . . Reused . | . . . Traps Extracted . | . . . Installed . | . . . Triggered . | . . . Machines | -11 -10 -10 ---------- Run | Scr Mat Min Machines Disabled 1 | . . 1 Max in Single Turn 1 | . . 1 Machines Sabotaged . | . . . Garrisons Compromised . | . . . Overloaded Fab Kills . | . . . Hacking | -11 -10 -10 --------- Run | Scr Mat Min Machines Accessed 9 | . 9 . Terminals 7 | . 7 . Fabricators . | . . . Repair Stations . | . . . Recycling Units 2 | . 2 . Scanalyzers . | . . . Garrison Access . | . . . Total Hacks 27 | . 27 . Successful 16 | . 16 . Failed 10 | . 10 . Catastrophic 1 | . 1 . Database Lockouts 1 | . 1 . Manual 15 | . 15 . Terminals 21 | . 21 . Fabricators . | . . . Repair Stations . | . . . Recycling Units 6 | . 6 . Scanalyzers . | . . . Garrison Access . | . . . Terminal Hacks 10 | . 10 . Part Schematic 1 | . 1 . Robot Analysis 5 | . 5 . Prototype ID Bank 3 | . 3 . Locate Traps 1 | . 1 . Fabricator Hacks . | . . . Repair Station Hacks . | . . . Recycling Unit Hacks 1 | . 1 . Retrieve Components 1 | . 1 . Scanalyzer . | . . . Garrison Access Hacks . | . . . Unauthorized Hacks 5 | . 5 . Terminals 2 | . 2 . Botnet 2 | . 2 . Fabricators . | . . . Repair Stations . | . . . Recycling Units 3 | . 3 . Mask 1 | . 1 . Tunnel 2 | . 2 . Scanalyzers . | . . . Garrison Access . | . . . Data Cores Recovered 1 | . 1 . Used . | . . . Hacking Detections 7 | . 7 . Full Trace Events 1 | . 1 . Feedback Events . | . . . Feedback Blocked . | . . . Robot Schematics Acquired . | . . . Robots Built . | . . . Authchips . | . . . Time . | . . . Total Robot Build Rating . | . . . Part Schematics Acquired 1 | . 1 . Parts Built . | . . . Authchips . | . . . Time . | . . . Total Part Build Rating . | . . . Parts Repaired . | . . . Time . | . . . Parts Recycled . | . . . Recycled Matter . | . . . Retrieved Matter . | . . . Retrieved Components 9 | . 9 . Parts Scanalyzed . | . . . Part Schematics Acquired . | . . . Parts Damaged . | . . . Bothacking | -11 -10 -10 ------------ Run | Scr Mat Min Used RIF Installer . | . . . Robots Hacked . | . . . Non-combat . | . . . Combat . | . . . Robot Hacks Applied . | . . . Relay Couplers Released . | . . . Fabnet Peak Effective % . | . . . Robots Rewired . | . . . Allies Hacked . | . . . Hacks Repelled . | . . . Allies | -11 -10 -10 -------- Run | Scr Mat Min Total Allies 1 | . 1 . Largest Group 1 | . 1 1 Highest-Rated Group 58 | . 58 58 Highest-Rated Ally 58 | . 58 58 Total Orders . | . . . Ally Attacks 49 | . 41 8 Total Damage 637 | . 527 110 Kills 14 | . 14 . Allies Corrupted . | . . . Allies Melted . | . . . Intel | -11 -10 -10 ------- Run | Scr Mat Min Robot Analysis Total 5 | . 5 . Derelict Logs Recovered . | . . . Drone Launches . | . . . Drone Recoveries . | . . . Exploration | -11 -10 -10 ------------- Run | Scr Mat Min Turns Passed 1640 | 115 1376 149 Spaces Moved 691 | 59 552 80 Core 38 | 38 . . Treads 653 | 21 552 80 Legs . | . . . Wheels . | . . . Hover . | . . . Flight . | . . . Fastest Speed 50 | 50 160 160 Average Speed 156 | 119 160 160 Slowest Speed 160 | 160 160 160 Overloaded Moves . | . . . Propulsion Burnouts . | . . . Robots Hopped . | . . . Cave-ins Triggered . | . . . Exploration Rate (%) 44 | 5 99 28 Regions Visited 2 Branch Regions 1 Pre-discovered Areas 2 | . 2 . Known Exits Taken . | . . . Unknown Exits Taken 2 | 1 1 . Scrap Searched . | . . . Spaces Dug . | . . . Terrain Destroyed . | . . . Melee . | . . . Projectile . | . . . AOE . | . . . Terrain Rammed . | . . . Walls Destroyed . | . . . Machines Disabled . | . . . Actions | -11 -10 -10 --------- Run | Scr Mat Min Total 1149 | 86 970 93 Wait 364 | 4 354 6 Move 689 | 58 551 80 Hop . | . . . Pick Up 21 | 9 12 . Fast Attach 7 | 6 1 . Attach 2 | 1 . 1 Detach . | . . . Swap 2 | . 2 . Drop 7 | . 7 . Fire 57 | 8 43 6 Melee . | . . . Ram . | . . . Kick . | . . . Crush . | . . . Escape Stasis . | . . . Rewire . | . . . Trap . | . . . Miscellaneous . | . . . Route ------- -11/Scrapyard -10/Materials (discovered 4 exits: [*Mat x3] / [*Min]) -10/Mines (discovered 1 exit: [*Mat]) History --------- Turn | Location | Event 14 | -11/Scrapyard | Discovered new exit (range 16) 116 | -11/Scrapyard | Entered Materials 310 | -10/Materials | Build established: Mutant 676 | -10/Materials | Discovered new exit (range 16) 1084 | -10/Materials | Discovered new exit (range 13) 1224 | -10/Materials | Discovered new exit (range 16) 1318 | -10/Materials | Central database locked down 1381 | -10/Materials | Discovered new exit (range 5) 1492 | -10/Materials | Entered Mines 1509 | -10/Mines | Met a Derelict bent on vengeance 1556 | -10/Mines | Discovered new exit (range 6) 1622 | -10/Mines | Assembled infested the area 1630 | -10/Mines | Core integrity fell below 50% 1641 | -10/Mines | Core integrity fell below 20% 1641 | -10/Mines | Core destroyed Last Messages --------------- 01631_ Core Extractor disabled. 01633_ as-37793 sneak attacks. 01633_ T-07 Excavator system corrupted by crushing effect. 01633_ Assault Rifle destroyed. 01634_ G-47 Trooper suffers critical hit (Burn). 01634_ G-47 Trooper destroyed. 01636_ K-01 Serf collects debris. 01638_ Lgt. Nuclear Core destroyed. 01639_ K-01 Serf collects debris. 01639_ K-01 Serf destroyed. 01640_ Player 2 removes Lgt. Ion Engine. 01640_ D-53 Grenadier destroyed. 01640_ Player 2 drops Lgt. Ion Engine. 01641_ Player 2 removes Med. Laser. 01641_ Player 2 removes Lgt. Assault Rifle. 01641_ Destroyed Asb. Hover Unit. 01641_ as-58474 destroyed. 01641_ as-22379 destroyed. 01641_ Core Extractor disabled. [Achievement: Back For More] Map ----- +----------------------------------------------------+ | | | | | | | | | | | | | ?????????????????????????????????????? | | ?????????????????????????????#####???? | | ????????????##??????????????## ##??? | | ???????????## ##?????######## #### | | ??????????## #?????# # | | ??????????# #?????# ##### | | ??????????# ##????# #???####### | | ??????????## ###### #?????????## | | ???????????### #??????????# | | ?????????????## < #?????????## | | ??????????????# ############## | | ??????????????## ##??## | | ???????????????## ##??## | | ???????????###### #?### ###### | | ??????????## % ### ##????### | | ?????????## %# #### ##???????## | | ?????????# #?# #?????????## | | ????????## #?## #?????????? | | ????????# ##?## #?????????? | | ????????# d@ #??## ##?????????? | | ????????# % ##???# ##??????????? | | ????????# #??? #???????????? | | ????#### ##??? #???????????? | | ????# #??# ???????????? | | ????# """ @ #??## ???????????? | | ????# """ % a #???## ??????????? | | ????# """ a #?????# ??????????? | | ????# #??????# ??????????? | | ????# """ %a"" #??????? ?????????? | | ????# """a""" """ #??????? ?????????? | | ????# """ """a"""a ?????????????????? | | ????# aa ????????????????? | | ????# """ """ """?###????????????????? | | ????# "" ="""a"""????????????????????? | | ????# """%"?? "??????????????????????? | | ??????? [ ?? %??????????????????????? | | ???????"" "??????????????????????????? | | ????????" "??????????????????????????? | | ????????? ???????????????????????????? | | ????????? ???????????????????????????? | | ?????????#???????????????????????????? | | ?????????????????????????????????????? | | ?????????????????????????????????????? | | ?????????????????????????????????????? | +----------------------------------------------------+ Best States ------------- Heat Dissipation 25 Energy Generation 14 Energy Capacity 250 Matter Stores 300 Matter Capacity 300 Sight Range 16 Terrain Scan Range 16 Terrain Scan Density 10 Armor Coverage 150 Evasion (%) 50 Recoil Reduction 2 Item Schematics ----------------- Huge Storage Unit | -10/Materials | Hacked Robot Schematics ------------------ None Fabricated ------------ Nothing Alien Tech Used ----------------- None Achievements -------------- Back For More Challenges ------------ None Player 2 | -11 -10 -10 ---------- Run | Scr Mat Min Slots Evolved . | . . . Power . | . . . Propulsion . | . . . Utility . | . . . Weapon . | . . . Parts Attached 16 | . 16 . Parts Lost 1 | . . 1 Damage Taken 664 | . 306 358 Core 127 | . 53 74 Player 2/Cogmind (%) 50 | . 48 52 Absorbed by Shields . | . . . Damage Inflicted 637 | . 527 110 Player 2/Cogmind (%) 41 | . 48 35 Combat Hostiles Destroyed 10 | . 10 . Player 2/Cogmind (%) 52 | . 62 . Game ------ Seed ThunderSignalFalx Manual? 0 Play Time 00:19:40 Cumulative 313.3 hours Start 2022.09.11 @ 10:56:07 End 2022.09.11 @ 11:13:54 Sessions 1 Manual Loads 0 Difficulty Rogue Special Mode AFD2020/Player2 Game No. 50 Rogue 43 Adventurer 1 Explorer 6 Win Type - Total 21 Types 5/3/6/1/1/1/2/1/1 Lore% 87 Gallery% 88 Achievement% 71 Wizard Run 0 Options --------- ASCII 0 Keyboard 0 Movement Mouse Keybinds 0 Fullscreen 1 Font 18/SmallcapsGlow Map View 76x50 Tactical HUD 1 Map Filters NONE Filters NONE Steam 1 RUN: 48ff0708-c847-4bfd-af00-714dae3a8332